bitfinex/quotes_SOLUSD_20250821
["timestamp","ask_amount","ask_price","bid_price","bid_amount"]
[1755764559443,0.68,186.52,186.51,3.74784508]
[1755764559665,0.06,186.53,186.51,3.74784508]
[1755764559824,0.06,186.53,186.52,3.74784508]
[1755764560157,0.74,186.53,186.52,29.74784508]
[1755764562456,0.06,186.53,186.52,29.74784508]
[1755764562650,0.74,186.53,186.52,29.74784508]
[1755764563259,0.74,186.53,186.52,25.06034508]
[1755764565458,0.74,186.53,186.52,3.74784508]
[1755764566656,0.06,186.53,186.52,3.74784508]
[1755764566866,0.06,186.53,186.52,71.45784508]
[1755764567155,0.06,186.55,186.52,71.45784508]
[1755764567156,0.06,186.55,186.54,0.28432314]
[1755764567362,0.06,186.55,186.54,17.62776223]
[1755764567652,0.06,186.55,186.54,17.65776223]
[1755764567859,0.06,186.55,186.54,26.67945098]
[1755764568059,0.06,186.57,186.56,39.87991715]
[1755764568240,0.06,186.57,186.56,168.85560731]
[1755764568447,0.06,186.57,186.56,168.88560731]
[1755764568651,0.06,186.57,186.56,171.03366231]
[1755764569255,0.06,186.57,186.56,171.00366231]
[1755764569844,0.06,186.57,186.56,153.37590008]
[1755764570047,0.74,186.57,186.56,69.828055]
[1755764570247,0.74,186.57,186.56,45.42784508]
[1755764570450,0.74,186.57,186.56,41.68]
[1755764571263,0.74,186.57,186.51,26.03]
[1755764571565,0.74,186.57,186.54,7.49569008]
[1755764571862,0.74,186.57,186.54,41.68]
[1755764572066,0.74,186.57,186.54,45.42784508]
[1755764573058,0.67,186.56,186.54,45.42784508]
[1755764575155,0.06,186.57,186.55,3.74784508]
[1755764575351,0.73,186.57,186.56,3.74784508]
[1755764576567,0.06,186.57,186.56,3.74784508]
[1755764576758,0.06,186.57,186.56,45.38784508]
[1755764577475,0.06,186.57,186.56,47.53647708]
[1755764580573,0.06,186.59,186.58,13.59559401]
[1755764580757,0.06,186.61,186.6,39.87991715]
[1755764580961,0.06,186.61,186.6,85.30776223]
[1755764581471,0.06,186.61,186.6,31.89566908]
[1755764581766,0.73,186.61,186.6,73.57566908]
[1755764582368,0.73,186.61,186.6,69.827824]
[1755764582567,0.73,186.61,186.6,73.57566908]
[1755764583174,0.06,186.61,186.6,73.57566908]
[1755764583357,0.06,186.61,186.6,69.827824]
[1755764583545,0.73,186.61,186.6,73.57566908]
[1755764584245,0.06,186.61,186.6,73.57566908]
[1755764585893,0.06,186.61,186.6,167.25558623]
[1755764586064,0.06,186.63,186.62,0.28432314]
[1755764586250,0.06,186.63,186.62,85.28776223]
[1755764588179,0.06,186.65,186.62,64.6462447]
[1755764588363,0.06,186.67,186.62,64.6462447]
[1755764588364,0.06,186.67,186.66,21.37560731]
[1755764588562,0.06,186.67,186.66,63.11560731]
[1755764589983,0.06,186.67,186.66,45.77216822]
[1755764590755,0.73,186.67,186.66,3.74784508]
[1755764590974,0.73,186.67,186.66,41.72]
[1755764591179,0.73,186.67,186.65,41.72]
[1755764591476,0.73,186.67,186.63,3.74784508]
[1755764591659,0.73,186.67,186.64,45.46784508]
[1755764593363,0.73,186.67,186.66,3.74784508]
[1755764594358,0.73,186.67,186.65,3.747845]
[1755764594684,0.67,186.66,186.65,3.747845]
[1755764594988,4.41784508,186.66,186.65,3.747845]
[1755764595278,0.67,186.66,186.65,3.747845]
[1755764595484,4.41784508,186.66,186.62,41.7]
[1755764595685,4.41784508,186.65,186.62,43.848054]
[1755764595984,0.67,186.64,186.62,43.848054]
[1755764596559,0.67,186.64,186.62,41.7]
[1755764597082,0.67,186.64,186.56,13.59559401]
[1755764597083,3.74784508,186.63,186.54,13.59559401]
[1755764597300,0.67,186.62,186.57,3.74784508]
[1755764597471,4.41784508,186.62,186.57,49.21569008]
[1755764597670,3.74784508,186.62,186.57,49.21569008]
[1755764597989,4.41784508,186.61,186.57,45.467845]
[1755764598297,0.67,186.6,186.59,26.0]
[1755764598987,4.41784508,186.6,186.57,41.72]
[1755764599162,4.41784508,186.59,186.58,26.0]
[1755764599960,4.41784508,186.59,186.52,0.03]
[1755764600259,3.74784508,186.55,186.53,26.0]
[1755764600460,0.67,186.54,186.53,26.0]
[1755764600969,0.67,186.56,186.53,29.74784508]
[1755764601287,0.67,186.56,186.54,3.74784508]
[1755764601488,0.67,186.56,186.53,29.74784508]
[1755764601790,0.67,186.55,186.53,26.0]
[1755764601966,0.67,186.54,186.53,26.0]
[1755764602774,0.67,186.56,186.53,26.0]
[1755764602974,0.67,186.55,186.52,0.03]
[1755764603690,0.69,186.54,186.52,3.77784508]
[1755764603988,0.69,186.53,186.52,29.77784508]
[1755764604591,0.69,186.56,186.52,3.77784508]
[1755764604895,0.69,186.55,186.52,3.77784508]
[1755764605298,0.69,186.54,186.52,0.03]
[1755764605469,0.69,186.53,186.52,0.03]
[1755764605666,0.69,186.54,186.52,0.03]
[1755764606068,3.74784508,186.57,186.52,3.77784508]
[1755764606285,0.69,186.56,186.52,3.77784508]
[1755764606487,0.69,186.55,186.52,3.77784508]
[1755764607396,3.74784508,186.57,186.52,3.77784508]
[1755764607692,4.43784508,186.57,186.52,3.77784508]
[1755764607890,0.69,186.56,186.52,0.03]
[1755764608197,4.43784508,186.56,186.52,0.03]
[1755764608696,0.69,186.55,186.52,3.77784508]
[1755764608895,3.74784508,186.56,186.52,3.77784508]
[1755764609081,0.69,186.54,186.52,3.77784508]
[1755764611792,0.69,186.54,186.52,0.03]
[1755764611975,0.69,186.53,186.52,0.03]
[1755764613200,26.06,186.6,186.52,3.77784508]
[1755764613399,0.69,186.57,186.52,0.03]
[1755764613568,0.69,186.57,186.53,3.74784508]
[1755764614209,0.69,186.59,186.56,3.74784508]
[1755764614390,0.06,186.6,186.57,3.74784508]
[1755764614700,0.06,186.6,186.59,3.74784508]
[1755764616581,0.75,186.6,186.56,55.375594]
[1755764616785,0.75,186.6,186.57,3.74784508]
[1755764616982,0.69,186.59,186.57,3.74784508]
[1755764617186,0.06,186.6,186.58,3.74784508]
[1755764617389,0.75,186.6,186.58,3.74784508]
[1755764619681,0.75,186.6,186.59,3.74784508]
[1755764620006,0.06,186.6,186.59,3.74784508]
[1755764620496,0.75,186.6,186.59,3.74784508]
[1755764621074,0.75,186.6,186.58,3.74784508]
[1755764622300,0.06,186.6,186.59,3.74784508]
[1755764624175,0.06,186.6,186.59,4.03216822]
[1755764624379,0.06,186.6,186.59,125.59216822]
[1755764624578,0.06,186.6,186.59,59.38776223]
[1755764624829,0.06,186.6,186.59,64.74710624]
[1755764625112,0.06,186.61,186.59,64.74710624]
[1755764625113,0.06,186.61,186.6,17.62776223]
[1755764625283,0.06,186.61,186.6,4.03216822]
[1755764626405,0.75,186.61,186.6,71.81216822]
[1755764626575,0.06,186.61,186.6,71.81216822]
[1755764628482,0.06,186.61,186.6,64.76681903]
[1755764628699,0.06,186.61,186.6,59.40776223]
[1755764629310,0.06,186.65,186.64,0.28432314]
[1755764629510,0.06,186.65,186.64,45.83216822]
[1755764630720,0.06,186.65,186.64,42.08432314]
[1755764631026,0.06,186.65,186.64,45.83216822]
[1755764631410,0.75,186.65,186.64,41.8]
[1755764631732,0.75,186.65,186.64,45.54784508]
[1755764632030,4.49784508,186.65,186.6,3.74784508]
[1755764632211,0.69,186.64,186.6,45.54784508]
[1755764632398,0.69,186.64,186.62,3.74784508]
[1755764632602,0.06,186.65,186.63,3.74784508]
[1755764632921,0.06,186.65,186.64,3.74784508]
[1755764633116,0.06,186.65,186.63,3.74784508]
[1755764633318,0.06,186.65,186.62,45.60784508]
[1755764633827,0.7,186.64,186.62,41.86]
[1755764634207,0.7,186.63,186.62,41.86]
[1755764634408,0.7,186.63,186.62,45.60784508]
[1755764634917,0.7,186.63,186.61,41.86]
[1755764635126,0.7,186.62,186.61,41.86]
[1755764637441,0.7,186.62,186.6,0.03]
[1755764637620,4.44784508,186.62,186.6,0.03]
[1755764638031,4.44784508,186.61,186.6,0.03]
[1755764638347,4.44784508,186.61,186.56,41.87]
[1755764638529,3.74784508,186.59,186.58,0.03]
[1755764638725,4.44784508,186.59,186.58,0.03]
[1755764639425,0.7,186.59,186.58,0.03]
[1755764640744,0.7,186.64,186.58,3.77784508]
[1755764640952,0.7,186.64,186.61,3.74784508]
[1755764641145,0.7,186.63,186.62,3.74784508]
[1755764641413,0.76,186.65,186.62,3.74784508]
[1755764641627,0.76,186.65,186.63,3.74784508]
[1755764641812,0.76,186.65,186.6,0.28432314]
[1755764642022,0.7,186.64,186.62,3.74784508]
[1755764642221,0.7,186.63,186.62,3.74784508]
[1755764642422,0.76,186.65,186.62,3.74784508]
[1755764642627,0.76,186.65,186.6,3.74784508]
[1755764642628,0.7,186.64,186.6,3.74784508]
[1755764643343,0.7,186.63,186.6,3.74784508]
[1755764643855,0.7,186.63,186.59,45.62784508]
[1755764644144,0.7,186.62,186.6,3.74784508]
[1755764644347,0.06,186.65,186.61,3.74784508]
[1755764644715,0.06,186.65,186.63,3.74784508]
[1755764644922,0.7,186.64,186.61,3.74784508]
[1755764645255,3.74784508,186.63,186.59,41.88]
[1755764645747,0.7,186.62,186.59,41.88]
[1755764645961,3.74784508,186.63,186.58,3.77784508]
[1755764646123,0.7,186.61,186.58,3.77784508]
[1755764646652,3.74784508,186.63,186.58,3.77784508]
[1755764646852,0.7,186.63,186.59,3.74784508]
[1755764647144,0.7,186.63,186.58,0.03]
[1755764647145,0.7,186.63,186.61,3.74784508]
[1755764647368,0.7,186.62,186.6,3.74784508]
[1755764647650,4.44784508,186.64,186.59,3.74784508]
[1755764647827,0.7,186.63,186.59,3.74784508]
[1755764648021,0.7,186.63,186.6,3.74784508]
[1755764648228,0.7,186.62,186.59,3.74784508]
[1755764648444,0.7,186.62,186.6,3.747845]
[1755764648728,0.7,186.64,186.6,7.49569008]
[1755764648929,3.80784508,186.65,186.6,7.49569008]
[1755764649236,0.7,186.63,186.6,7.49569008]
[1755764650228,0.7,186.62,186.6,3.747845]
[1755764650733,0.7,186.61,186.6,3.747845]
[1755764650936,4.44784508,186.61,186.58,0.03]
[1755764651341,3.74784508,186.59,186.58,0.03]
[1755764651538,4.44784508,186.59,186.58,0.03]
[1755764652384,0.7,186.59,186.58,0.03]
[1755764653670,4.44784508,186.59,186.58,0.03]
[1755764656950,18.04343909,186.59,186.58,0.03]
[1755764657356,44.04343909,186.59,186.58,0.03]
[1755764657967,48.07560731,186.59,186.58,0.03]
[1755764658274,22.07560731,186.59,186.58,0.03]
[1755764658641,13.87991715,186.58,186.56,0.03]
[1755764658861,63.27560731,186.57,186.56,0.03]
[1755764659170,63.97560731,186.57,186.56,0.03]
[1755764660463,62.64138399,186.57,186.56,0.03]
[1755764661563,56.47991715,186.57,186.56,0.03]
[1755764661763,62.64138399,186.57,186.56,0.03]
[1755764662568,6.86146684,186.57,186.56,0.03]
[1755764662764,68.58,186.57,186.56,0.03]
[1755764663066,74.74146684,186.57,186.56,0.03]
[1755764663262,48.74146684,186.57,186.56,0.03]
[1755764664458,41.88,186.57,186.56,0.03]
[1755764664659,48.72146684,186.57,186.56,0.03]
[1755764664978,48.04146684,186.57,186.56,0.03]
[1755764665346,0.68,186.6,186.56,0.03]
[1755764665549,6.16146684,186.59,186.56,0.03]
[1755764665766,6.84146684,186.59,186.56,0.03]
[1755764665979,41.9,186.6,186.56,0.03]
[1755764666288,6.16146684,186.59,186.56,0.03]
[1755764666464,48.06146684,186.6,186.56,0.03]
[1755764666984,48.06146684,186.6,186.56,6.19146684]
[1755764666985,41.9,186.6,186.56,6.19146684]
[1755764669069,0.68,186.6,186.56,6.19146684]
[1755764669772,0.74,186.6,186.56,6.19146684]
[1755764669960,0.68,186.59,186.56,0.03]
[1755764670489,0.06,186.6,186.56,6.19146684]
[1755764671364,0.68,186.59,186.56,0.03]
[1755764671584,0.68,186.59,186.56,6.19146684]
[1755764672867,0.68,186.59,186.56,0.03]
[1755764673604,6.16146684,186.57,186.56,0.03]
[1755764673890,42.5,186.58,186.56,0.03]
[1755764674079,6.84146684,186.57,186.56,0.03]
[1755764676295,0.68,186.57,186.56,0.03]
[1755764676796,41.9,186.6,186.56,0.03]
[1755764676967,0.68,186.59,186.56,0.03]
[1755764677569,48.06146684,186.6,186.56,0.03]
[1755764677872,41.9,186.6,186.56,6.19146684]
[1755764678082,48.74146684,186.6,186.56,0.03]
[1755764678290,0.68,186.59,186.56,0.03]
[1755764678889,0.68,186.58,186.56,0.03]
[1755764680269,48.06146684,186.6,186.56,0.03]
[1755764680470,41.9,186.6,186.56,6.19146684]
[1755764680888,42.58,186.6,186.56,6.19146684]
[1755764681801,42.58,186.6,186.56,0.03]
[1755764682000,0.68,186.59,186.56,0.03]
[1755764682388,45.67719019,186.6,186.56,0.03]
[1755764682591,0.68,186.58,186.56,0.03]
[1755764682905,0.68,186.59,186.56,0.03]
[1755764683610,41.9,186.6,186.57,3.77719019]
[1755764683972,42.58,186.6,186.57,3.77719019]
[1755764684907,41.9,186.6,186.57,3.77719019]
[1755764685079,0.06,186.6,186.57,3.77719019]
[1755764685704,0.06,186.6,186.58,3.77719019]
[1755764685875,0.06,186.6,186.59,3.77719019]
[1755764686378,0.06,186.6,186.59,5.92559119]
[1755764687498,0.06,186.6,186.59,5.95559119]
[1755764688390,0.06,186.6,186.59,5.92559119]
[1755764690691,0.74,186.6,186.56,3.80719019]
[1755764690902,0.68,186.59,186.57,3.77719019]
[1755764691092,0.68,186.59,186.57,5.92582219]
[1755764691712,0.06,186.6,186.57,5.92582219]
[1755764692213,0.74,186.6,186.58,3.77719019]
[1755764692713,0.74,186.6,186.57,5.92582219]
[1755764694297,0.74,186.6,186.59,26.0]
[1755764694618,0.06,186.6,186.58,3.77719019]
[1755764694784,0.06,186.6,186.57,28.148632]
[1755764694983,0.06,186.6,186.58,3.77719019]
[1755764695487,0.06,186.6,186.58,5.92582219]
[1755764696829,0.06,186.6,186.56,0.03]
[1755764697127,0.76,186.6,186.58,3.77719019]
[1755764698615,0.06,186.6,186.58,3.77719019]
[1755764698918,0.06,186.6,186.58,5.92582219]
[1755764699901,0.06,186.6,186.59,3.77719019]
[1755764700112,0.06,186.6,186.59,3.80719019]
[1755764700312,0.06,186.6,186.59,32.23979933]
[1755764700522,0.06,186.6,186.59,46.37132774]
[1755764700833,0.03,186.6,186.59,46.37132774]
[1755764701193,0.06,186.61,186.6,0.14216157]
[1755764701428,0.06,186.61,186.6,17.65710734]
[1755764701930,0.06,186.61,186.6,19.80470034]
[1755764702393,0.06,186.61,186.6,73.94910633]
[1755764702594,0.06,186.61,186.6,28.147593]
[1755764702809,0.06,186.61,186.6,31.92478319]
[1755764703617,0.06,186.61,186.6,32.20910633]
[1755764704001,0.06,186.61,186.6,45.80470034]
[1755764704828,0.06,186.61,186.6,32.20910633]
[1755764705007,0.06,186.61,186.6,31.92478319]
[1755764705207,0.06,186.61,186.6,32.20910633]
[1755764706001,0.06,186.61,186.6,45.80470034]
[1755764706931,0.06,186.61,186.6,32.20910633]
[1755764707100,0.76,186.61,186.6,31.92478319]
[1755764707299,0.76,186.61,186.6,71.51719019]
[1755764707598,0.76,186.61,186.6,41.74]
[1755764707797,4.53719019,186.61,186.57,0.03]
[1755764708029,0.76,186.61,186.57,41.77]
[1755764708207,0.76,186.61,186.57,45.54719019]
[1755764708408,0.7,186.6,186.58,3.77719019]
[1755764708816,0.06,186.61,186.58,3.77719019]
[1755764709018,0.06,186.61,186.57,45.54719019]
[1755764709019,0.7,186.59,186.57,45.54719019]
[1755764709210,0.7,186.59,186.58,3.77719019]
[1755764709535,0.76,186.61,186.58,3.77719019]
[1755764709729,0.76,186.61,186.59,3.77719019]
[1755764710598,0.06,186.61,186.6,3.77719019]
[1755764710833,0.06,186.61,186.6,45.51719019]
[1755764711359,0.06,186.61,186.6,45.80151333]
[1755764712248,0.06,186.61,186.6,85.93301302]
[1755764712747,0.06,186.61,186.6,59.93301302]
[1755764713133,0.06,186.62,186.61,17.65710734]
[1755764713339,0.06,186.63,186.61,23.01574757]
[1755764713531,0.06,186.63,186.62,17.65710734]
[1755764714337,0.06,186.64,186.63,13.87991715]
[1755764714542,0.06,186.65,186.63,63.19429753]
[1755764714742,0.06,186.65,186.64,21.43429753]
[1755764715452,0.06,186.65,186.64,4.06151333]
[1755764715652,0.06,186.65,186.64,45.82151333]
[1755764715956,0.06,186.67,186.64,63.19429753]
[1755764716144,0.06,186.67,186.66,47.43429753]
[1755764716451,0.06,186.7,186.67,13.87991715]
[1755764716656,0.06,186.7,186.68,59.41710734]
[1755764718540,0.06,186.7,186.68,55.63991715]
[1755764718744,0.06,186.7,186.68,59.41710734]
[1755764719162,0.06,186.7,186.68,66.92053857]
[1755764719333,0.06,186.7,186.69,13.87991715]
[1755764719532,0.06,186.7,186.69,17.65710734]
[1755764720140,0.06,186.7,186.69,23.04521007]
[1755764721360,0.76,186.7,186.69,51.16961606]
[1755764722055,0.76,186.7,186.69,71.49719019]
[1755764722940,0.76,186.7,186.69,67.72]
[1755764723138,0.76,186.7,186.69,71.49719019]
[1755764724742,0.76,186.7,186.69,45.49719019]
[1755764724938,0.76,186.7,186.69,41.72]
[1755764725865,0.76,186.7,186.69,45.49719019]
[1755764726247,0.76,186.7,186.69,41.72]
[1755764726971,0.76,186.7,186.68,41.72]
[1755764728855,0.68,186.69,186.68,41.72]
[1755764729377,0.06,186.7,186.68,45.78151333]
[1755764729575,0.06,186.7,186.69,3.77719019]
[1755764729775,0.06,186.7,186.69,6.20853033]
[1755764730565,0.06,186.7,186.69,19.80412434]
[1755764730764,0.06,186.7,186.69,25.16059763]
[1755764732684,0.06,186.73,186.72,39.59559401]
[1755764732883,0.68,186.85,186.73,0.28432314]
[1755764733178,0.68,186.84,186.78,26.0]
[1755764733358,0.68,186.84,186.8,3.77719019]
[1755764733554,0.68,186.84,186.81,45.51719019]
[1755764733761,0.68,186.84,186.82,41.74]
[1755764734175,3.77719019,186.83,186.82,41.74]
[1755764734366,6.81992648,186.83,186.82,41.74]
[1755764734686,6.81992648,186.83,186.8,41.76]
[1755764734884,6.13992648,186.83,186.8,41.76]
[1755764735084,0.68,186.82,186.8,41.76]
[1755764736157,0.68,186.81,186.8,41.76]
[1755764737877,0.68,186.81,186.78,41.72]
[1755764738075,6.13992648,186.79,186.78,41.72]
[1755764738256,0.68,186.79,186.78,41.72]
[1755764740096,6.81992648,186.79,186.78,41.72]
[1755764740270,6.81992648,186.79,186.74,6.139927]
[1755764740462,6.13992648,186.78,186.76,41.7]
[1755764740662,0.68,186.77,186.76,41.7]
[1755764742620,6.81992648,186.8,186.76,41.7]
[1755764742779,0.68,186.79,186.76,47.83992648]
[1755764743389,6.19992648,186.81,186.76,47.83992648]
[1755764743580,0.68,186.79,186.77,6.13992648]
[1755764743778,0.68,186.78,186.77,6.13992648]
[1755764743979,0.68,186.8,186.76,47.83992648]
[1755764744184,6.19992648,186.81,186.76,47.83992648]
[1755764744387,0.68,186.79,186.76,47.83992648]
[1755764744583,0.68,186.79,186.76,41.7]
[1755764744787,0.68,186.78,186.76,41.7]
[1755764744999,0.68,186.77,186.76,41.7]
[1755764745600,0.68,186.77,186.76,41.66]
[1755764745986,6.81992648,186.77,186.76,41.66]
[1755764746700,0.68,186.77,186.76,41.66]
[1755764747007,6.81992648,186.77,186.76,41.66]
[1755764748909,6.81992648,186.77,186.74,41.66]
[1755764749118,6.13992648,186.75,186.74,41.66]
[1755764749498,6.81992648,186.75,186.74,41.66]
[1755764749803,6.81992648,186.75,186.7,32.819927]
[1755764749988,6.13992648,186.71,186.69,0.03]
[1755764750403,0.68,186.71,186.69,0.03]
[1755764750624,6.13992648,186.72,186.69,0.03]
[1755764750790,0.68,186.74,186.69,6.16992648]
[1755764750996,0.68,186.78,186.71,6.13992648]
[1755764751216,6.13992648,186.77,186.72,47.81992648]
[1755764751509,0.68,186.76,186.72,41.68]
[1755764751683,0.68,186.75,186.72,41.68]
[1755764751888,6.13992648,186.77,186.72,47.81992648]
[1755764752105,6.13992648,186.78,186.72,47.81992648]
[1755764752312,6.13992648,186.76,186.72,41.68]
[1755764752511,0.68,186.75,186.72,41.68]
[1755764752696,6.81992648,186.74,186.72,41.68]
[1755764752891,6.81992648,186.73,186.71,41.68]
[1755764753309,6.13992648,186.74,186.71,41.68]
[1755764753894,6.85992648,186.74,186.71,41.68]
[1755764755823,6.91992648,186.74,186.71,41.68]
[1755764756003,6.85992648,186.73,186.71,41.68]
[1755764756209,0.72,186.73,186.71,41.68]
[1755764756435,0.06,186.74,186.71,41.68]
[1755764756436,6.85992648,186.72,186.71,41.68]
[1755764758422,0.72,186.72,186.71,41.68]
[1755764758821,6.85992648,186.72,186.71,41.68]
[1755764759028,0.72,186.72,186.71,41.68]
[1755764759219,6.85992648,186.72,186.71,41.68]
[1755764759417,6.85992648,186.72,186.69,0.03]
[1755764759605,6.13992648,186.7,186.69,0.03]
[1755764759809,6.85992648,186.7,186.69,0.03]
[1755764760312,6.85992648,186.7,186.67,0.03]
[1755764760524,13.65559401,186.74,186.67,0.03]
[1755764760525,6.13992648,186.68,186.67,0.03]
[1755764761016,0.72,186.7,186.67,0.03]
[1755764761232,6.13992648,186.68,186.67,0.03]
[1755764761638,6.13992648,186.7,186.67,0.03]
[1755764762015,6.13992648,186.68,186.67,0.03]
[1755764762728,6.85992648,186.68,186.67,0.03]
[1755764766124,0.72,186.7,186.67,0.03]
[1755764766337,6.85992648,186.68,186.67,0.03]
[1755764766645,0.72,186.68,186.67,0.03]
[1755764766944,6.85992648,186.68,186.67,0.03]
[1755764769140,6.13992648,186.68,186.67,0.03]
[1755764770455,3.77397441,186.68,186.67,0.03]
[1755764771027,3.77397441,186.69,186.67,0.03]
[1755764772775,4.49397441,186.68,186.67,0.03]
[1755764774972,3.77397441,186.66,186.65,0.03]
[1755764775371,4.49397441,186.66,186.65,0.03]
[1755764775682,0.06,186.7,186.65,0.03]
[1755764775846,0.06,186.7,186.65,3.86397441]
[1755764776046,4.55397441,186.7,186.65,3.86397441]
[1755764776491,4.55397441,186.7,186.65,3.80397441]
[1755764776780,3.83397441,186.7,186.65,3.80397441]
[1755764777083,3.77397441,186.68,186.66,3.803974]
[1755764777451,0.72,186.69,186.66,3.803974]
[1755764777452,0.06,186.7,186.66,3.83397441]
[1755764777780,0.06,186.7,186.66,7.54794841]
[1755764777979,4.49397441,186.69,186.66,3.773974]
[1755764778182,3.77397441,186.67,186.65,0.03]
[1755764778395,4.49397441,186.66,186.65,3.803974]
[1755764778755,4.49397441,186.66,186.65,0.03]
[1755764782371,6.87335267,186.66,186.65,0.03]
[1755764783197,6.87335267,186.66,186.58,71.54390667]
[1755764783405,6.15335267,186.64,186.58,71.54390667]
[1755764783591,6.15335267,186.64,186.61,2.14817]
[1755764783787,6.15335267,186.63,186.61,2.14817]
[1755764784490,6.15335267,186.63,186.58,71.54390667]
[1755764784684,6.15335267,186.63,186.59,6.153353]
[1755764785524,6.15335267,186.6,186.59,6.153353]
[1755764785815,6.15335267,186.6,186.58,65.390554]
[1755764786019,6.15335267,186.6,186.58,71.543906]
[1755764787088,0.71,186.62,186.58,71.543906]
[1755764787616,6.15335267,186.67,186.58,71.543906]
[1755764787794,0.71,186.61,186.58,71.543906]
[1755764788523,0.71,186.6,186.57,0.03]
[1755764788824,6.15335267,186.59,186.57,0.03]
[1755764789189,6.86335267,186.59,186.57,0.03]
[1755764789394,6.86335267,186.58,186.57,0.03]
[1755764796108,26.28432314,186.64,186.57,0.03]
[1755764796312,6.15335267,186.58,186.57,0.03]
[1755764796714,6.86335267,186.58,186.57,0.03]
[1755764797729,0.71,186.58,186.57,0.03]
[1755764797940,6.86335267,186.58,186.57,0.03]
[1755764798817,6.15335267,186.58,186.57,0.03]
[1755764799535,6.86335267,186.58,186.57,0.03]
[1755764799910,0.71,186.6,186.57,0.03]
[1755764800409,81.55991715,186.64,186.57,0.03]
[1755764800410,6.15335267,186.58,186.57,0.03]
[1755764801026,0.71,186.62,186.57,0.03]
[1755764801329,0.71,186.61,186.57,0.03]
[1755764801537,6.86335267,186.61,186.57,0.03]
[1755764801715,0.71,186.6,186.57,0.03]
[1755764801911,6.86335267,186.6,186.57,0.03]
[1755764802227,6.15335267,186.59,186.57,0.03]
[1755764802430,6.86335267,186.6,186.57,0.03]
[1755764802837,0.71,186.59,186.57,0.03]
[1755764803135,6.15335267,186.58,186.57,0.03]
[1755764803502,6.86335267,186.58,186.57,0.03]
[1755764804315,21.86591561,186.58,186.57,0.03]
[1755764804522,30.4901608,186.58,186.57,0.03]
[1755764804903,26.71,186.58,186.57,0.03]
[1755764805098,4.4901608,186.58,186.57,0.03]
[1755764806611,3.8401608,186.58,186.57,0.03]
[1755764808020,0.06,186.58,186.57,0.03]
[1755764809010,4.5501608,186.58,186.57,0.03]
[1755764813241,0.77,186.58,186.57,0.03]
[1755764813446,4.5501608,186.58,186.57,0.03]
[1755764814734,21.92591561,186.58,186.57,0.03]
[1755764817319,22.21023875,186.58,186.57,0.03]
[1755764818623,33.84464474,186.57,186.56,0.03]
[1755764818822,7.84464474,186.57,186.56,0.03]
[1755764819148,8.50464474,186.57,186.56,0.03]
[1755764819743,22.10023875,186.57,186.56,0.03]
[1755764820039,4.06448394,186.56,186.55,0.03]
[1755764820341,4.06448394,186.56,186.48,0.03]
[1755764820342,39.59559401,186.53,186.48,0.03]
[1755764820547,43.66007795,186.53,186.48,0.03]
[1755764820923,44.32007795,186.53,186.48,0.03]
[1755764821245,85.71575481,186.53,186.48,0.03]
[1755764821447,81.93559401,186.53,186.48,0.03]
[1755764821652,71.4601608,186.53,186.48,0.09]
[1755764821826,3.7801608,186.53,186.48,0.09]